bitfinex-derivatives/quotes_BTCF0:USTF0_20250901
["timestamp","ask_amount","ask_price","bid_price","bid_amount"]
[1756759708524,0.378,108740.0,108730.0,0.3618]
[1756759708827,0.378,108740.0,108730.0,0.001]
[1756759709028,0.378,108740.0,108720.0,0.40094]
[1756759709527,0.379,108740.0,108720.0,0.40094]
[1756759709723,0.364,108740.0,108730.0,0.001]
[1756759710224,0.361,108740.0,108720.0,0.40094]
[1756759710422,0.362,108740.0,108720.0,0.40094]
[1756759710625,0.4539551,108740.0,108730.0,0.03555]
[1756759710929,0.4549551,108740.0,108730.0,0.39735]
[1756759711324,0.4729551,108740.0,108730.0,0.001]
[1756759712027,0.4739551,108740.0,108730.0,0.001]
[1756759712218,1.0847551,108740.0,108730.0,0.001]
[1756759712417,0.0919586,108730.0,108720.0,0.00459]
[1756759712616,0.1719586,108730.0,108720.0,0.40094]
[1756759712822,0.1899586,108730.0,108720.0,0.00459]
[1756759713022,0.1899586,108730.0,108720.0,0.40094]
[1756759713023,0.1719586,108730.0,108720.0,0.40094]
[1756759713932,0.1899586,108730.0,108720.0,0.36539]
[1756759714232,0.1909586,108730.0,108720.0,0.36539]
[1756759715228,0.1739586,108730.0,108720.0,0.36539]
[1756759715431,0.1739586,108730.0,108720.0,0.40256]
[1756759715931,0.1939586,108730.0,108720.0,0.74674491]
[1756759716132,0.1939586,108730.0,108720.0,0.38594491]
[1756759716331,0.1929586,108730.0,108720.0,0.00459]
[1756759716532,0.1729586,108730.0,108720.0,0.78391491]
[1756759716727,0.001,108730.0,108720.0,1.12588191]
[1756759717031,0.0919466,108750.0,108730.0,0.0919548]
[1756759717333,0.3819466,108750.0,108740.0,0.77932491]
[1756759719030,0.3819466,108750.0,108740.0,1.14012491]
[1756759719832,0.3829466,108750.0,108740.0,1.14012491]
[1756759720035,0.291,108750.0,108740.0,1.14012491]
[1756759720236,0.001,108750.0,108740.0,1.48207501]
[1756759721233,0.001,108750.0,108740.0,1.1007201]
[1756759721539,0.0929417,108750.0,108740.0,1.20580172]
[1756759721841,0.0929417,108750.0,108740.0,1.14112491]
[1756759722340,0.0919417,108750.0,108740.0,1.14312491]
[1756759722541,0.0919417,108750.0,108740.0,1.14412491]
[1756759722932,0.0929417,108750.0,108740.0,1.14212491]
[1756759723443,0.0929417,108750.0,108740.0,1.14012491]
[1756759724133,0.0929417,108750.0,108740.0,1.23207511]
[1756759724438,0.0929417,108750.0,108740.0,1.14012491]
[1756759724932,0.0929417,108750.0,108740.0,0.77932491]
[1756759727349,0.0929417,108750.0,108740.0,1.14012491]
[1756759727539,0.001,108750.0,108740.0,1.23207491]
[1756759727846,0.001,108750.0,108740.0,1.48207491]
[1756759728034,0.001,108750.0,108740.0,1.54775172]
[1756759728938,0.001,108750.0,108740.0,1.54875172]
[1756759729542,0.0919378,108760.0,108750.0,0.05089]
[1756759729737,0.1419378,108760.0,108750.0,0.43224491]
[1756759729937,0.4099378,108760.0,108750.0,0.01372]
[1756759730245,0.0919417,108750.0,108740.0,0.78132491]
[1756759730644,0.0919417,108750.0,108740.0,0.84700172]
[1756759730838,0.0919417,108750.0,108740.0,0.78132491]
[1756759731639,0.1099417,108750.0,108740.0,0.03817]
[1756759731941,0.1099417,108750.0,108720.0,1.84209143]
[1756759731942,0.1099502,108740.0,108720.0,0.84500172]
[1756759732342,0.018,108740.0,108730.0,0.3608]
[1756759732542,0.018,108740.0,108730.0,0.74215491]
[1756759732737,0.018,108740.0,108730.0,0.38135491]
[1756759732947,0.268,108740.0,108730.0,0.00459]
[1756759733255,0.6288,108740.0,108730.0,0.00459]
[1756759733750,0.7088,108740.0,108730.0,0.00459]
[1756759733950,0.9888,108740.0,108730.0,0.00459]
[1756759735045,0.9888,108740.0,108730.0,0.00559]
[1756759735745,0.378,108740.0,108730.0,0.42511491]
[1756759735944,0.36,108740.0,108730.0,0.78591491]
[1756759736145,0.36,108740.0,108730.0,0.42511491]
[1756759736542,0.36,108740.0,108730.0,0.87787361]
[1756759736948,1.8533261,108770.0,108730.0,0.94355042]
[1756759737154,0.018,108760.0,108740.0,0.77932491]
[1756759737354,0.358,108760.0,108740.0,0.39797]
[1756759737542,0.3788,108750.0,108730.0,0.38794491]
[1756759737743,0.7088,108750.0,108730.0,0.78591491]
[1756759738254,0.7088,108750.0,108730.0,0.78491491]
[1756759738442,0.7088,108750.0,108730.0,0.85159172]
[1756759739147,0.6908,108750.0,108730.0,0.84959172]
[1756759739350,0.018,108740.0,108730.0,0.40356]
[1756759739550,0.188,108740.0,108730.0,0.40356]
[1756759739748,0.188,108740.0,108720.0,0.06567681]
[1756759739749,0.8907502,108740.0,108720.0,0.06567681]
[1756759740046,0.0919841,108700.0,108670.0,0.02061203]
[1756759740345,0.0919841,108700.0,108680.0,0.03717]
[1756759740346,0.3608,108690.0,108680.0,0.03717]
[1756759740651,0.7108,108690.0,108680.0,0.03717]
[1756759740842,0.7098,108690.0,108680.0,0.03717]
[1756759741440,0.35,108690.0,108680.0,0.03717]
[1756759741657,0.16,108690.0,108680.0,0.10284691]
[1756759741843,0.5208,108690.0,108680.0,0.10284691]
[1756759742048,0.16,108690.0,108680.0,1.18700282]
[1756759742243,0.3608,108720.0,108700.0,0.05089]
[1756759742448,0.37,108720.0,108710.0,0.10284691]
[1756759742752,0.37,108720.0,108710.0,0.46364691]
[1756759743358,0.37,108720.0,108710.0,0.10284691]
[1756759743859,0.374,108720.0,108710.0,0.46464691]
[1756759744844,0.374,108720.0,108710.0,1.09600182]
[1756759745051,0.006,108720.0,108710.0,1.18797732]
[1756759746149,0.006,108720.0,108710.0,1.18697732]
[1756759746350,0.006,108720.0,108710.0,1.18797732]
[1756759747056,0.002,108720.0,108710.0,1.18697732]
[1756759747255,0.3608,108760.0,108720.0,0.0919665]
[1756759747457,0.7408,108760.0,108740.0,0.3608]
[1756759747647,0.0919501,108740.0,108730.0,0.77740491]
[1756759747847,0.4319501,108740.0,108730.0,0.77740491]
[1756759748047,0.4319501,108740.0,108730.0,0.84008182]
[1756759748550,0.4319501,108740.0,108730.0,0.45872691]
[1756759748753,0.4319501,108740.0,108730.0,0.06267691]
[1756759748951,0.6819501,108740.0,108720.0,0.77740491]
[1756759749151,0.4319501,108740.0,108730.0,0.06267691]
[1756759749352,1.0427501,108740.0,108710.0,0.3608]
[1756759749555,0.7927501,108740.0,108720.0,0.06267691]
[1756759749754,0.7927501,108740.0,108720.0,0.09792691]
[1756759749953,0.3608,108730.0,108710.0,0.74215491]
[1756759750155,0.5008,108730.0,108720.0,0.06267691]
[1756759750350,0.7508,108730.0,108720.0,0.06267691]
[1756759750550,0.7508,108730.0,108710.0,0.77740491]
[1756759750760,0.5008,108730.0,108720.0,0.06267691]
[1756759751153,0.14,108730.0,108710.0,0.77740491]
[1756759751354,0.14,108730.0,108720.0,0.09792691]
[1756759751650,0.14,108730.0,108720.0,0.03525]
[1756759752054,0.14,108730.0,108710.0,0.74215491]
[1756759752357,0.14,108730.0,108720.0,0.06267691]
[1756759752757,0.143,108730.0,108720.0,0.001]
[1756759752956,0.7538,108730.0,108720.0,0.001]
[1756759753352,0.7538,108730.0,108710.0,0.74215491]
[1756759753652,0.5038,108730.0,108720.0,0.06267691]
[1756759753962,0.5048,108730.0,108720.0,0.06367691]
[1756759754161,0.5048,108730.0,108720.0,0.001]
[1756759755052,0.2359586,108730.0,108720.0,0.84108182]
[1756759755258,0.2369586,108730.0,108720.0,0.84108182]
[1756759755451,0.142,108730.0,108720.0,1.18204882]
[1756759755656,0.145,108730.0,108720.0,1.18204882]
[1756759755862,0.2369585,108730.0,108720.0,1.18204882]
[1756759756161,0.145,108730.0,108720.0,1.18304882]
[1756759756361,0.144,108730.0,108720.0,1.18304882]
[1756759756662,0.141,108730.0,108720.0,1.18204882]
[1756759756965,0.143,108730.0,108720.0,1.18204882]
[1756759757168,0.2349585,108730.0,108720.0,1.18204882]
[1756759757567,0.143,108730.0,108720.0,1.18204882]
[1756759758363,0.142,108730.0,108720.0,1.18204882]
[1756759758565,0.2319585,108730.0,108720.0,1.18204882]
[1756759759362,0.002,108730.0,108720.0,1.18204882]
[1756759759563,0.0919305,108770.0,108750.0,0.1055885]
[1756759759768,0.0919305,108770.0,108760.0,0.84008182]
[1756759760158,0.0919305,108770.0,108760.0,0.09792691]
[1756759760364,0.0919305,108770.0,108760.0,0.47928182]
[1756759760565,0.0919332,108760.0,108750.0,0.79105491]
[1756759761074,0.3419332,108760.0,108750.0,0.01365]
[1756759761372,0.3419332,108760.0,108750.0,0.79105491]
[1756759761660,0.3419332,108760.0,108750.0,0.01365]
[1756759762266,0.02151273,108780.0,108760.0,0.0919296]
[1756759762471,0.35151273,108780.0,108770.0,1.23012961]
[1756759762870,0.02151273,108780.0,108770.0,1.16145161]
[1756759763166,0.02151273,108780.0,108770.0,1.54280652]
[1756759763565,0.02430433,108800.0,108790.0,0.0919077]
[1756759763760,0.02430433,108800.0,108790.0,1.23011261]
[1756759763955,0.02430433,108800.0,108790.0,1.29278952]
[1756759765563,0.30455433,108800.0,108790.0,0.7226]
[1756759765774,0.30455433,108800.0,108790.0,0.001]
[1756759766365,0.66535433,108800.0,108790.0,0.001]
[1756759766561,0.30055433,108800.0,108790.0,0.001]
[1756759766766,0.66135433,108800.0,108790.0,0.001]
[1756759767166,0.30055433,108800.0,108790.0,0.001]
[1756759767670,0.29355433,108800.0,108780.0,0.74674491]
[1756759767869,0.40535433,108800.0,108790.0,0.06267691]
[1756759768272,0.01925,108790.0,108780.0,0.36539]
[1756759768866,0.26925,108790.0,108780.0,0.36639]
[1756759769468,0.26925,108790.0,108780.0,0.00559]
[1756759769667,0.26925,108790.0,108780.0,0.36639]
[1756759769971,0.0919415,108750.0,108720.0,0.08232668]
[1756759770174,0.3608,108740.0,108710.0,0.79777533]
[1756759770368,0.3608,108740.0,108720.0,0.06267691]
[1756759770369,0.7208,108740.0,108720.0,0.06267691]
[1756759770676,0.3608,108730.0,108720.0,0.06267691]
[1756759770861,0.35,108730.0,108710.0,0.41642042]
[1756759771173,0.35,108730.0,108720.0,0.06267691]
[1756759771373,0.35,108730.0,108720.0,0.09792691]
[1756759771575,0.35,108730.0,108720.0,0.03525]
[1756759771772,0.35,108730.0,108720.0,0.84008182]
[1756759771972,0.14,108730.0,108720.0,1.09008182]
[1756759772176,0.14,108730.0,108720.0,1.18904882]
[1756759772370,0.143,108730.0,108720.0,1.18904882]
[1756759772571,0.143,108730.0,108720.0,1.45788182]
[1756759772772,0.144,108730.0,108720.0,1.45088182]
[1756759772970,0.144,108730.0,108720.0,1.54284882]
[1756759773162,0.004,108730.0,108720.0,1.54284882]
[1756759773362,0.001,108730.0,108720.0,1.54284882]
[1756759774074,0.001,108730.0,108720.0,1.45088182]
[1756759774265,0.001,108730.0,108720.0,1.54284882]
[1756759775172,0.3608,108770.0,108750.0,0.01456]
[1756759775370,0.7008,108770.0,108750.0,0.01456]
[1756759775771,0.7008,108770.0,108750.0,0.41148]
[1756759775971,0.7008,108770.0,108750.0,0.79283491]
[1756759776177,0.7008,108770.0,108750.0,0.05068]
[1756759776377,0.7018,108770.0,108750.0,0.79283491]
[1756759777376,0.7018,108770.0,108750.0,0.41148]
[1756759777679,0.7018,108770.0,108750.0,0.79283491]
[1756759777875,0.7018,108770.0,108750.0,0.41148]
[1756759778178,0.7008,108770.0,108750.0,0.01456]
[1756759778374,0.4527354,108760.0,108750.0,0.01456]
[1756759778575,0.0919501,108740.0,108730.0,0.41747491]
[1756759778770,0.1619501,108740.0,108730.0,0.77827491]
[1756759778970,0.1619501,108740.0,108730.0,0.84095182]
[1756759779974,0.07,108740.0,108730.0,1.09095182]
[1756759780175,0.072,108740.0,108730.0,1.18291032]
[1756759781676,0.0919394,108760.0,108750.0,0.01456]
[1756759781882,0.4619394,108760.0,108750.0,0.79283491]
[1756759782075,0.4619394,108760.0,108750.0,1.10551182]
[1756759782270,0.4619394,108760.0,108750.0,1.19745342]
[1756759782474,0.37,108760.0,108750.0,3.00869342]
[1756759782969,0.374,108760.0,108750.0,2.91675182]
[1756759783380,0.374,108760.0,108750.0,3.00869342]
[1756759784183,0.374,108760.0,108750.0,2.91675182]
[1756759784184,0.4659331,108760.0,108750.0,2.91675182]
[1756759784573,0.4639331,108760.0,108750.0,2.91675182]
[1756759784776,0.4649331,108760.0,108750.0,1.21631182]
[1756759785179,0.7149331,108760.0,108750.0,0.73616]
[1756759786183,0.7149331,108760.0,108750.0,0.37536]
[1756759786489,0.7149331,108760.0,108750.0,0.79283491]
[1756759786681,0.7149331,108760.0,108750.0,0.85551182]
[1756759786879,0.4649331,108760.0,108750.0,0.85551182]
[1756759787084,0.4649332,108760.0,108750.0,1.55825342]
[1756759787291,0.4649332,108760.0,108750.0,1.46631182]
[1756759788888,0.4649332,108760.0,108750.0,0.85551182]
[1756759789688,0.4649332,108760.0,108750.0,0.49471182]
[1756759789889,1.0757332,108760.0,108750.0,0.01456]
[1756759790077,1.0757332,108760.0,108750.0,0.41148]
[1756759790078,0.7149332,108760.0,108750.0,0.41148]
[1756759790278,0.7149332,108760.0,108750.0,1.19745342]
[1756759790279,0.373,108760.0,108750.0,1.19745342]
[1756759790481,0.083,108760.0,108750.0,1.19745342]
[1756759790785,0.003,108760.0,108750.0,1.54745342]
[1756759790989,0.003,108760.0,108750.0,1.51745342]
[1756759791188,0.003,108760.0,108750.0,1.57745342]
[1756759791384,0.003,108760.0,108750.0,1.19745342]
[1756759791786,0.003,108760.0,108750.0,1.21781214]
[1756759791986,0.003,108760.0,108750.0,0.83645723]
[1756759792182,0.003,108760.0,108750.0,1.53781214]
[1756759792387,0.003,108760.0,108750.0,1.57781214]
[1756759792789,0.003,108760.0,108750.0,1.51513523]
[1756759792980,0.003,108760.0,108750.0,1.57781214]
[1756759793582,0.0919123,108790.0,108750.0,1.66975374]
[1756759793782,0.4019123,108790.0,108780.0,0.84095182]
[1756759793982,0.4019123,108790.0,108780.0,2.24911182]
[1756759794490,0.4019123,108790.0,108780.0,0.84095182]
[1756759794686,0.4029123,108790.0,108780.0,2.24563182]
[1756759795497,0.4059123,108790.0,108780.0,2.24563182]
[1756759795994,0.4109123,108790.0,108780.0,2.24563182]
[1756759797381,0.4109123,108790.0,108780.0,2.28484182]
[1756759798088,0.4109123,108790.0,108780.0,0.88920182]
[1756759798294,0.4109123,108790.0,108780.0,2.28368182]
[1756759799195,0.4109123,108790.0,108780.0,0.50784691]
[1756759799391,0.4109123,108790.0,108780.0,2.28028182]
[1756759800194,0.4109123,108790.0,108780.0,0.88920182]
[1756759800488,0.4109078,108790.0,108780.0,2.36435802]
[1756759800681,0.4109078,108790.0,108780.0,2.27244182]
[1756759800885,0.4109078,108790.0,108780.0,0.88920182]
[1756759801099,0.4109078,108790.0,108780.0,2.27120182]
[1756759801291,0.319,108790.0,108780.0,2.61311802]
[1756759801493,0.009,108790.0,108780.0,2.61311802]
[1756759801689,0.009,108790.0,108780.0,2.96311802]
[1756759801996,0.009,108790.0,108780.0,2.61505789]
[1756759802202,0.009,108790.0,108780.0,2.98505789]
[1756759802589,0.009,108790.0,108780.0,3.36835267]
[1756759802790,0.009,108790.0,108780.0,2.98505789]
[1756759802991,0.004,108790.0,108780.0,2.98505789]
[1756759803194,0.004,108790.0,108780.0,2.98805789]
[1756759803390,0.004,108790.0,108780.0,2.93805789]
[1756759803695,0.02430433,108800.0,108790.0,0.0919182]
[1756759803998,0.02685609,108810.0,108800.0,0.1908398]
[1756759804301,0.02685609,108810.0,108800.0,2.76046627]
[1756759805098,0.02685609,108810.0,108800.0,3.08046627]
[1756759805294,0.02685609,108810.0,108800.0,2.76046627]
[1756759805597,0.02685609,108810.0,108800.0,3.11046627]
[1756759806001,0.02685609,108810.0,108800.0,3.12046627]
[1756759806193,0.02685609,108810.0,108800.0,1.38090627]
[1756759806494,0.02685609,108810.0,108800.0,3.34026627]
[1756759806803,0.02752872,108830.0,108820.0,0.1758947]
[1756759807002,0.02752872,108830.0,108820.0,2.64578948]
[1756759807298,0.02752872,108830.0,108820.0,2.70846639]
[1756759807902,0.02752872,108830.0,108820.0,3.69207043]
[1756759808096,0.02752872,108830.0,108820.0,3.30877565]
[1756759808296,0.02752872,108830.0,108820.0,3.34529565]
[1756759808499,0.02752872,108830.0,108820.0,2.59096087]
[1756759808796,0.02752872,108830.0,108820.0,2.97425565]
[1756759808996,0.02752872,108830.0,108820.0,2.96096087]
[1756759809196,0.02752872,108830.0,108820.0,2.97525565]
[1756759809598,0.02752872,108830.0,108820.0,3.29525565]
[1756759809798,0.02752872,108830.0,108820.0,3.31525565]
[1756759810504,0.02752872,108830.0,108820.0,1.57148087]
[1756759810706,0.02752872,108830.0,108820.0,3.30761565]
[1756759811811,0.02752872,108830.0,108820.0,3.30861565]
[1756759812015,0.02752872,108830.0,108820.0,2.96681565]
[1756759812201,0.02752872,108830.0,108820.0,2.96421565]
[1756759812402,0.02752872,108830.0,108820.0,1.61577565]
[1756759812703,0.04890872,108830.0,108820.0,2.71337575]
[1756759812904,0.02752872,108830.0,108820.0,2.71337575]
[1756759813510,0.02752872,108830.0,108820.0,3.42667053]
[1756759813706,0.02676593,108850.0,108840.0,0.1384102]
[1756759813905,0.35676593,108850.0,108840.0,3.00885976]
[1756759814902,0.35676593,108850.0,108840.0,2.62556498]
[1756759815412,0.35776593,108850.0,108840.0,2.62556498]
[1756759815717,0.35976593,108850.0,108840.0,2.62556498]
[1756759815913,0.35976593,108850.0,108840.0,3.07153667]
[1756759816212,0.02676593,108850.0,108840.0,3.07153667]
[1756759817102,0.02676593,108850.0,108840.0,1.72673667]
[1756759817302,0.02676593,108850.0,108840.0,3.06321667]
[1756759817507,0.02676593,108850.0,108840.0,3.31321667]
[1756759818111,0.02676593,108850.0,108840.0,3.63321667]
[1756759818505,0.02676593,108850.0,108840.0,3.67321667]
[1756759818704,0.02676593,108850.0,108840.0,3.31321667]
[1756759818905,0.02676593,108850.0,108840.0,3.30805667]
[1756759819512,0.02676593,108850.0,108840.0,1.97673667]
[1756759819911,0.02676593,108850.0,108840.0,3.30429667]
[1756759820307,0.02676593,108850.0,108840.0,1.97673667]
[1756759820908,0.43785503,108850.0,108840.0,0.40734]
[1756759821099,0.43785503,108850.0,108840.0,1.75443478]
[1756759821300,0.43785503,108850.0,108840.0,2.15269478]
[1756759821906,0.43785503,108850.0,108840.0,1.79189478]
[1756759822101,0.43785503,108850.0,108840.0,1.79289478]
[1756759822707,0.43885503,108850.0,108840.0,1.79189478]
[1756759822907,0.43985503,108850.0,108840.0,1.79189478]
[1756759824107,0.43985503,108850.0,108840.0,1.4086]
[1756759824310,0.43985503,108850.0,108840.0,0.46729478]
[1756759824616,0.43985503,108850.0,108840.0,1.74459478]
[1756759824917,0.43985503,108850.0,108840.0,1.74455478]
[1756759825619,0.80065503,108850.0,108840.0,1.74155478]
[1756759825824,0.80065503,108850.0,108840.0,1.69501478]
[1756759826005,0.1610918,108840.0,108830.0,0.08859]
[1756759826210,0.1610918,108840.0,108830.0,1.74422478]
[1756759826407,0.1610918,108840.0,108830.0,1.36093]
[1756759826609,0.1610918,108840.0,108830.0,1.74422478]
[1756759826811,0.7718918,108840.0,108830.0,0.00459]
[1756759827010,0.7718918,108840.0,108830.0,0.02721]
[1756759827204,0.7718918,108840.0,108830.0,0.47188478]
[1756759827917,0.7718918,108840.0,108830.0,0.43442478]
[1756759828318,0.4110918,108840.0,108830.0,0.43442478]
[1756759828613,0.7718918,108840.0,108830.0,0.43442478]
[1756759828808,0.4110918,108840.0,108830.0,0.47288478]
[1756759829003,0.1610918,108840.0,108830.0,0.83368478]
[1756759829211,0.1018718,108840.0,108830.0,0.92556518]
[1756759829513,0.0918718,108840.0,108830.0,0.92556518]
[1756759829716,0.11863443,108850.0,108830.0,0.95078209]
[1756759829907,0.41863443,108850.0,108840.0,2.12849478]
[1756759830109,0.41863443,108850.0,108840.0,2.19117169]
[1756759830304,0.41863443,108850.0,108840.0,2.12849478]
[1756759830512,0.32676593,108850.0,108840.0,2.53304369]
[1756759830821,0.32676593,108850.0,108840.0,2.91633847]
[1756759831018,0.09676593,108850.0,108840.0,2.91633847]
[1756759831405,0.02676593,108850.0,108840.0,2.91633847]
[1756759832219,0.02676593,108850.0,108840.0,3.29711689]
[1756759832410,0.02676593,108850.0,108840.0,3.36297111]
[1756759832721,0.02876593,108850.0,108840.0,3.36297111]
[1756759833022,0.01912954,108870.0,108860.0,0.03746]
[1756759833211,0.32912954,108870.0,108860.0,2.12193478]
[1756759833411,0.01912954,108870.0,108860.0,2.27646679]
[1756759833720,0.01912954,108870.0,108860.0,3.19726679]
[1756759833908,0.03451911,108880.0,108870.0,0.1758467]
[1756759834114,0.30451911,108880.0,108870.0,1.36591317]
[1756759834315,0.30451911,108880.0,108870.0,0.59932361]
[1756759834523,0.03451911,108880.0,108870.0,1.61591317]
[1756759834722,0.03451911,108880.0,108870.0,1.62050317]
[1756759835120,0.03751911,108880.0,108870.0,1.69438945]
[1756759835322,0.03751911,108880.0,108870.0,1.33365411]
[1756759835625,0.04151911,108880.0,108870.0,3.40656367]
[1756759835923,0.04151911,108880.0,108870.0,2.27993411]
[1756759836108,0.04151911,108880.0,108870.0,2.60993411]
[1756759836315,0.04151911,108880.0,108870.0,2.27993411]
[1756759836616,0.04151911,108880.0,108870.0,1.21924797]
[1756759836916,0.04151911,108880.0,108870.0,2.50316797]
[1756759837220,0.04151911,108880.0,108870.0,2.21171989]
[1756759837419,0.04151911,108880.0,108870.0,2.97830945]
[1756759838408,0.04151911,108880.0,108870.0,1.69438945]
[1756759838613,0.04151911,108880.0,108870.0,2.97314945]
[1756759839619,0.04151911,108880.0,108870.0,2.87838275]
[1756759839914,0.13335731,108880.0,108870.0,0.89536169]
[1756759840122,0.13335731,108880.0,108870.0,2.16960169]
[1756759840621,0.13335731,108880.0,108870.0,0.96121591]
[1756759840831,0.13335731,108880.0,108870.0,2.23545591]
[1756759841014,0.13335731,108880.0,108870.0,1.85216113]
[1756759841216,0.13335731,108880.0,108870.0,2.23545591]
[1756759841416,0.13335731,108880.0,108870.0,0.96121591]
[1756759841710,0.13335731,108880.0,108870.0,2.23121591]
[1756759841909,0.13335731,108880.0,108870.0,0.96121591]
[1756759842111,0.13335731,108880.0,108870.0,2.23117591]
[1756759842325,0.13335731,108880.0,108870.0,2.23025591]
[1756759842623,0.13335731,108880.0,108870.0,0.96121591]
[1756759842827,0.13335731,108880.0,108870.0,2.22933591]
[1756759843329,0.13335731,108880.0,108870.0,0.96121591]
[1756759843526,0.18075731,108880.0,108870.0,2.22565591]
[1756759843722,0.18075731,108880.0,108870.0,0.96121591]
[1756759843931,0.18075731,108880.0,108870.0,2.22473591]
[1756759844226,0.18075731,108880.0,108870.0,2.22381591]
[1756759844424,0.18075731,108880.0,108870.0,2.20731398]
[1756759844921,0.13335731,108880.0,108870.0,2.20731398]
[1756759846817,0.13335731,108880.0,108870.0,0.94471398]
[1756759847131,0.13335731,108880.0,108870.0,2.20135398]
[1756759847426,0.13335731,108880.0,108870.0,2.19879398]
[1756759847628,0.15762731,108880.0,108870.0,2.13519707]
[1756759847825,0.15762731,108880.0,108870.0,2.19787398]
[1756759848024,0.15762731,108880.0,108870.0,1.8145792]
[1756759848223,0.15762731,108880.0,108870.0,2.19787398]
[1756759848827,0.13335731,108880.0,108870.0,2.19787398]
[1756759849528,0.21648731,108880.0,108870.0,2.19587398]
[1756759849721,0.13335731,108880.0,108870.0,2.19587398]
[1756759849927,0.21648731,108880.0,108870.0,1.83507398]
[1756759850135,0.21648731,108880.0,108870.0,2.19587398]
[1756759850136,0.18075731,108880.0,108870.0,2.19587398]
[1756759850432,0.13335731,108880.0,108870.0,2.19587398]
[1756759851630,0.04151911,108880.0,108870.0,2.19587398]
[1756759851832,0.04151911,108880.0,108870.0,3.25101546]
[1756759852027,0.04151911,108880.0,108870.0,2.92101546]
[1756759852226,0.01898971,108880.0,108870.0,2.93751739]
[1756759852420,0.01898971,108880.0,108870.0,3.24751739]
[1756759852840,0.01946141,108890.0,108880.0,0.1265182]
[1756759853031,0.01946141,108890.0,108880.0,1.4133866]
[1756759853720,0.01946141,108890.0,108880.0,1.6633866]
[1756759853938,0.02246141,108890.0,108880.0,0.89679704]
[1756759854239,0.02246141,108890.0,108880.0,1.6679766]
[1756759854532,0.02246141,108890.0,108880.0,1.68449889]
[1756759854833,0.11429121,108890.0,108880.0,1.68449889]
[1756759855024,0.11729121,108890.0,108880.0,1.68449889]
[1756759855431,0.11729121,108890.0,108880.0,1.52680647]
[1756759855633,0.11729121,108890.0,108880.0,2.13483169]
[1756759855835,0.11729121,108890.0,108880.0,2.51812647]
[1756759856429,0.02546141,108890.0,108880.0,2.60996467]
[1756759857028,0.11729121,108890.0,108880.0,2.51812647]
[1756759857329,0.11729121,108890.0,108880.0,0.53271169]
[1756759857330,0.20042121,108890.0,108880.0,0.53271169]
[1756759857529,0.45042121,108890.0,108880.0,0.41145478]
[1756759857837,0.45042121,108890.0,108880.0,1.64769478]
[1756759858222,0.81122121,108890.0,108880.0,1.2644]
[1756759858429,0.81122121,108890.0,108880.0,1.64769478]
[1756759858626,0.81122121,108890.0,108880.0,0.47003478]
[1756759858827,0.91122121,108890.0,108880.0,0.05400817]
[1756759859227,0.66122121,108890.0,108880.0,0.00459]
[1756759859735,0.90122121,108890.0,108880.0,0.05405537]
[1756759860525,1.15122121,108890.0,108880.0,0.05405537]
[1756759862736,0.03573,108880.0,108870.0,0.04954596]
[1756759863034,0.00521,108870.0,108850.0,0.16843113]
[1756759863233,0.02187,108860.0,108850.0,0.49296923]
[1756759863437,0.07187,108860.0,108850.0,0.51686923]
[1756759864028,0.07187,108860.0,108850.0,0.55154923]
[1756759864232,0.07187,108860.0,108850.0,0.13357445]
[1756759864437,0.43267,108860.0,108850.0,0.04382023]
[1756759864632,0.43267,108860.0,108850.0,0.48569501]
[1756759864834,0.43267,108860.0,108850.0,0.56597923]
[1756759865039,0.43267,108860.0,108850.0,0.56697923]
[1756759865338,0.43267,108860.0,108850.0,0.18368445]
[1756759865635,0.43267,108860.0,108850.0,0.50112501]
[1756759865837,0.43267,108860.0,108850.0,0.50212501]
[1756759866040,0.43267,108860.0,108850.0,0.50112501]
[1756759866239,0.43267,108860.0,108850.0,0.50212501]
[1756759866735,0.42746,108860.0,108850.0,0.50212501]
[1756759866936,0.42746,108860.0,108850.0,0.50112501]
[1756759866937,0.43267,108860.0,108850.0,0.50112501]
[1756759867336,0.05,108860.0,108850.0,0.56380192]
[1756759867537,0.05,108860.0,108850.0,1.33232814]
[1756759867839,0.05,108860.0,108850.0,1.3478006]
[1756759868040,0.05,108860.0,108850.0,0.88217914]
[1756759868229,0.47730121,108890.0,108850.0,1.26547392]
[1756759868436,0.37434,108880.0,108870.0,0.52903169]
[1756759868739,0.72267,108880.0,108870.0,0.52903169]
[1756759868933,0.70601,108880.0,108870.0,0.46635478]
[1756759869332,0.71434,108880.0,108870.0,0.46635478]
[1756759869735,0.71734,108880.0,108870.0,0.46635478]
[1756759870236,0.71213,108880.0,108870.0,0.46635478]
[1756759870436,0.7038,108880.0,108870.0,0.46635478]
[1756759870633,0.343,108880.0,108870.0,0.52903169]
[1756759870840,0.003,108880.0,108870.0,0.77903169]
[1756759871037,0.003,108880.0,108870.0,0.87088669]
[1756759871239,0.0948546,108880.0,108870.0,0.39573691]
[1756759871535,0.0948546,108880.0,108870.0,0.77903169]
[1756759872739,0.4775246,108880.0,108870.0,0.52903169]
[1756759872939,0.4775246,108880.0,108870.0,0.08306]
[1756759873141,0.4775246,108880.0,108870.0,0.04698]
[1756759873339,0.091855,108870.0,108860.0,1.76759337]
[1756759873546,0.474525,108870.0,108860.0,0.59495028]
[1756759874338,0.0948532,108880.0,108870.0,0.03608]
[1756759874536,0.1748532,108880.0,108870.0,0.52903169]
[1756759875142,0.1718532,108880.0,108870.0,0.52903169]
[1756759875448,0.1718389,108880.0,108870.0,2.53271758]
[1756759875949,0.1728389,108880.0,108870.0,2.53271758]
[1756759876451,0.1748389,108880.0,108870.0,2.53271758]
[1756759877037,0.1748389,108880.0,108870.0,2.44087028]
[1756759877240,0.1748389,108880.0,108870.0,1.8075755]
[1756759877545,0.1748389,108880.0,108870.0,2.19087028]
[1756759878051,0.1748389,108880.0,108870.0,0.95575028]
[1756759878252,0.1748389,108880.0,108870.0,2.19047028]
[1756759880142,0.1748389,108880.0,108870.0,0.52903169]
[1756759880349,0.8075089,108880.0,108870.0,0.08306]
[1756759880549,0.8075089,108880.0,108870.0,0.53227337]
[1756759880751,0.7856389,108880.0,108870.0,0.53227337]
[1756759881844,0.4248389,108880.0,108870.0,0.53227337]
[1756759882048,0.1748389,108880.0,108870.0,1.29759778]
[1756759882250,0.1748389,108880.0,108870.0,1.20575028]
[1756759882650,0.1748389,108880.0,108870.0,1.23492087]
[1756759883037,0.1748389,108880.0,108870.0,1.29759778]
[1756759883745,0.1748389,108880.0,108870.0,1.20575028]
[1756759884946,0.1748389,108880.0,108870.0,0.95575028]
[1756759885248,0.5575089,108880.0,108870.0,0.14573691]